fUSD/lending_fUSD_20260610
["ID","MTS","AMOUNT","RATE_DAILY","PERIOD"]
[424684560,1781046673000,-200.0,0.00032369,2]
[424684556,1781046673000,-200.0,0.00032369,2]
[424684553,1781046673000,-200.0,0.00032369,2]
[424684555,1781046673000,-200.0,0.00032369,2]
[424684559,1781046673000,-200.0,0.00032369,2]
[424684562,1781046673000,-200.0,0.00032369,2]
[424684565,1781046673000,-200.0,0.00032369,2]
[424684564,1781046673000,-200.0,0.00032369,2]
[424684566,1781046673000,-200.0,0.00032369,2]
[424684563,1781046673000,-200.0,0.00032369,2]
[424684567,1781046673000,-200.0,0.00032369,2]
[424684571,1781046673000,-200.0,0.00032369,2]
[424684569,1781046673000,-200.0,0.00032369,2]
[424684570,1781046673000,-200.0,0.00032369,2]
[424684583,1781046673000,-200.0,0.00032369,2]
[424684494,1781046673000,-1000.0,0.00032203,2]
[424684493,1781046673000,-150.0,0.00032192,120]
[424684482,1781046673000,-5000.0,0.00032123,2]
[424684483,1781046673000,-5000.0,0.00032123,2]
[424684484,1781046673000,-250.0,0.00032123,2]
[424684485,1781046673000,-250.0,0.00032123,2]
[424684487,1781046673000,-250.0,0.00032123,2]
[424684486,1781046673000,-250.0,0.00032123,2]
[424684499,1781046673000,-150.0,0.00032216,2]
[424684489,1781046673000,-159.25,0.0003213,14]
[424684490,1781046673000,-159.25,0.0003213,14]
[424684491,1781046673000,-1417.79851296,0.00032192,30]
[424684497,1781046673000,-1344.1,0.0003221,5]
[424684498,1781046673000,-150.0,0.00032216,2]
[424684492,1781046673000,-275.43580798,0.00032192,120]
[424684488,1781046673000,-159.25,0.0003213,14]
[424684595,1781046674000,-549.0,0.00032369,2]
[424684596,1781046674000,-200.0,0.00032369,2]
[424684599,1781046674000,-200.0,0.00032369,2]
[424684597,1781046674000,-200.0,0.00032369,2]
[424684736,1781046675000,-1000.0,0.00032877,10]
[424684726,1781046675000,-1000.0,0.00032877,10]
[424684730,1781046675000,-1000.0,0.00032877,10]
[424684732,1781046675000,-1000.0,0.00032877,10]
[424684742,1781046675000,-1000.0,0.00032877,10]
[424684731,1781046675000,-1000.0,0.00032877,10]
[424684733,1781046675000,-1000.0,0.00032877,10]
[424684735,1781046675000,-1000.0,0.00032877,10]
[424684743,1781046675000,-1000.0,0.00032877,10]
[424684734,1781046675000,-1000.0,0.00032877,10]
[424684738,1781046675000,-1000.0,0.00032877,10]
[424684737,1781046675000,-1000.0,0.00032877,10]
[424684740,1781046675000,-1000.0,0.00032877,10]
[424684744,1781046675000,-1000.0,0.00032877,10]
[424684747,1781046675000,-151.0,0.00032877,7]
[424684745,1781046675000,-151.0,0.00032877,7]
[424684727,1781046675000,-1000.0,0.00032877,10]
[424684739,1781046675000,-1000.0,0.00032877,10]
[424684725,1781046675000,-1000.0,0.00032877,10]
[424684717,1781046675000,-1000.0,0.00032877,10]
[424684724,1781046675000,-1000.0,0.00032877,10]
[424684707,1781046675000,-1000.0,0.00032877,10]
[424684709,1781046675000,-1000.0,0.00032877,10]
[424684708,1781046675000,-1000.0,0.00032877,10]
[424684711,1781046675000,-1000.0,0.00032877,10]
[424684710,1781046675000,-1000.0,0.00032877,10]
[424684712,1781046675000,-1000.0,0.00032877,10]
[424684715,1781046675000,-1000.0,0.00032877,10]
[424684716,1781046675000,-1000.0,0.00032877,10]
[424684728,1781046675000,-1000.0,0.00032877,10]
[424684713,1781046675000,-1000.0,0.00032877,10]
[424684754,1781046675000,-600.0,0.00032877,120]
[424684718,1781046675000,-1000.0,0.00032877,10]
[424684721,1781046675000,-1000.0,0.00032877,10]
[424684719,1781046675000,-1000.0,0.00032877,10]
[424684722,1781046675000,-1000.0,0.00032877,10]
[424684723,1781046675000,-1000.0,0.00032877,10]
[424684729,1781046675000,-1000.0,0.00032877,10]
[424684720,1781046675000,-1000.0,0.00032877,10]
[424684714,1781046675000,-1000.0,0.00032877,10]
[424684746,1781046675000,-151.0,0.00032877,7]
[424684741,1781046675000,-1000.0,0.00032877,10]
[424684749,1781046675000,-151.0,0.00032877,7]
[424684773,1781046675000,-178.0,0.00032938,120]
[424684774,1781046675000,-407.0,0.00032955,2]
[424684777,1781046675000,-150.0,0.00032955,2]
[424684776,1781046675000,-426.21033715,0.00032955,2]
[424684779,1781046675000,-289.94500543,0.00032955,2]
[424684775,1781046675000,-407.0,0.00032955,2]
[424684782,1781046675000,-500.0,0.00032955,2]
[424684780,1781046675000,-500.0,0.00032955,2]
[424684770,1781046675000,-2033.07,0.000329,120]
[424684778,1781046675000,-150.0,0.00032955,2]
[424684783,1781046675000,-506.27005022,0.00032955,2]
[424684787,1781046675000,-52352.93234586,0.00033,2]
[424684748,1781046675000,-151.0,0.00032877,7]
[424684788,1781046675000,-1610.05429725,0.00033,30]
[424684786,1781046675000,-6075.0,0.00032991,2]
[424684789,1781046675000,-37480.25012712,0.00033,10]
[424684790,1781046675000,-394.2187469,0.00033,30]
[424684785,1781046675000,-3643.0,0.00032991,2]
[424684781,1781046675000,-500.0,0.00032955,2]
[424684769,1781046675000,-285.58,0.000329,120]
[424684784,1781046675000,-247.24597396,0.00032955,2]
[424684772,1781046675000,-204.0,0.00032938,120]
[424684771,1781046675000,-2000.0,0.00032901,7]
[424684751,1781046675000,-205.377969,0.00032877,7]
[424684753,1781046675000,-1000.0,0.00032877,120]
[424684750,1781046675000,-151.0,0.00032877,7]
[424684756,1781046675000,-600.0,0.00032877,120]
[424684755,1781046675000,-306.88,0.00032877,120]
[424684759,1781046675000,-500.0,0.00032877,2]
[424684762,1781046675000,-500.0,0.00032877,2]
[424684757,1781046675000,-500.0,0.00032877,2]
[424684752,1781046675000,-151.000015,0.00032877,7]
[424684758,1781046675000,-500.0,0.00032877,2]
[424684760,1781046675000,-500.0,0.00032877,2]
[424684763,1781046675000,-428.55797723,0.00032877,2]
[424684764,1781046675000,-150.0,0.00032877,2]
[424684765,1781046675000,-1217.775128,0.00032877,120]
[424684766,1781046675000,-166.6875,0.00032877,2]
[424684767,1781046675000,-182.600014,0.00032882,5]
[424684761,1781046675000,-500.0,0.00032877,2]
[424684768,1781046675000,-633.22,0.00032885,7]
[424684811,1781046677000,-150.0,0.00033,120]
[424684808,1781046677000,-3308.6518159,0.00033,34]
[424684813,1781046677000,-3000.0,0.00033,3]
[424684806,1781046677000,-200.0,0.0003,2]
[424684812,1781046677000,-230.005364,0.00033,14]
[424684814,1781046677000,-200.0,0.00033,7]
[424684827,1781046677000,-150.0,0.0003308,2]
[424684817,1781046677000,-244.75,0.00033057,14]
[424684816,1781046677000,-343.19,0.00033014,120]
[424684818,1781046677000,-160.0,0.00033062,11]
[424684810,1781046677000,-1500.0,0.00033,3]
[424684819,1781046677000,-500.0,0.0003307,2]
[424684815,1781046677000,-772.0,0.00033011,8]
[424684809,1781046677000,-12491.89,0.00033,14]
[424684798,1781046677000,-150.0,0.00027397,2]
[424684804,1781046677000,-768.98023,0.00027397,2]
[424684802,1781046677000,-768.98023,0.00027397,2]
[424684803,1781046677000,-768.98023,0.00027397,2]
[424684801,1781046677000,-33062.38,0.00027397,10]
[424684797,1781046677000,-151.0,0.000195,2]
[424684799,1781046677000,-768.98023,0.00027397,2]
[424684800,1781046677000,-768.98023,0.00027397,2]
[424684796,1781046677000,-500.0,0.00015,2]
[424684795,1781046677000,-151.0,0.00015,2]
[424684792,1781046677000,-500.0,0.00015,2]
[424684794,1781046677000,-500.0,0.00015,2]
[424684793,1781046677000,-500.0,0.00015,2]
[424684791,1781046677000,-500.0,0.00015,2]
[424684820,1781046677000,-1000.0,0.0003307,2]
[424684805,1781046677000,-768.98023,0.00027397,2]
[424684822,1781046677000,-150.0,0.0003308,2]
[424684807,1781046677000,-598.9112531,0.00033,30]
[424684821,1781046677000,-2324.0,0.0003307,11]
[424684826,1781046677000,-150.0,0.0003308,2]
[424684851,1781046677000,-471.94,0.000332,30]
[424684853,1781046677000,-1117.76351179,0.0003321,2]
[424684850,1781046677000,-34.45950155,0.00033177,120]
[424684852,1781046677000,-300.0,0.000332,10]
[424684846,1781046677000,-858.50817555,0.00033155,11]
[424684845,1781046677000,-160.0,0.00033155,11]
[424684847,1781046677000,-1465.49182445,0.00033155,11]
[424684842,1781046677000,-6465.80478824,0.00033142,30]
[424684840,1781046677000,-1181.13,0.00033126,30]
[424684844,1781046677000,-3328.71680134,0.00033142,30]
[424684843,1781046677000,-2024.08696035,0.00033142,30]
[424684849,1781046677000,-476.1436169,0.00033177,120]
[424684841,1781046677000,-1055.93,0.00033135,7]
[424684834,1781046677000,-5000.0,0.00033116,2]
[424684848,1781046677000,-678.50817555,0.00033177,120]
[424684835,1781046677000,-250.0,0.00033116,2]
[424684854,1781046677000,-528.38682101,0.0003321,2]
[424684823,1781046677000,-150.0,0.0003308,2]
[424684824,1781046677000,-150.0,0.0003308,2]
[424684825,1781046677000,-150.0,0.0003308,2]
[424684828,1781046677000,-3354.0,0.00033091,10]
[424684837,1781046677000,-161.01892363,0.00033123,120]
[424684829,1781046677000,-256.0,0.00033091,3]
[424684831,1781046677000,-150.0,0.000331,2]
[424684832,1781046677000,-164.6,0.000331,2]
[424684833,1781046677000,-200.0,0.000331,10]
[424684830,1781046677000,-2324.0,0.000331,11]
[424684836,1781046677000,-500.0,0.00033123,120]
[424684839,1781046677000,-340.78390582,0.00033123,120]
[424684838,1781046677000,-426.27566652,0.00033123,120]
[424684867,1781046678000,-1224.559843,0.00026384,2]
[424684864,1781046678000,-1224.559843,0.00026384,2]
[424684874,1781046678000,-768.98023,0.00027397,2]
[424684873,1781046678000,-768.98023,0.00027397,2]
[424684868,1781046678000,-1224.559843,0.00027164,2]
[424684875,1781046678000,-768.98023,0.00027397,2]
[424684866,1781046678000,-1224.559843,0.00026384,2]
[424684865,1781046678000,-1224.559843,0.00026384,2]
[424684855,1781046678000,-151.0,0.00014572,2]
[424684859,1781046678000,-933.0,0.00021323,2]
[424684858,1781046678000,-151.0,0.00020858,2]
[424684862,1781046678000,-187.90066,0.00025,2]
[424684861,1781046678000,-627.838458,0.00025,2]
[424684860,1781046678000,-215.89329178,0.00024,3]
[424684863,1781046678000,-1224.559843,0.00026384,2]
[424684857,1781046678000,-500.0,0.00015,2]
[424684876,1781046678000,-768.98023,0.00027397,2]
[424684856,1781046678000,-500.0,0.00015,2]
[424684869,1781046678000,-1224.559843,0.00027164,2]
[424684878,1781046678000,-768.98023,0.00027397,2]
[424684871,1781046678000,-768.98023,0.00027397,2]
[424684894,1781046678000,-1105.95788543,0.0003321,2]
[424684872,1781046678000,-768.98023,0.00027397,2]
[424684893,1781046678000,-1255.70739876,0.0003321,2]
[424684891,1781046678000,-1240.49280844,0.0003321,2]
[424684889,1781046678000,-3163.73431566,0.0003321,2]
[424684890,1781046678000,-1881.93238763,0.0003321,2]
[424684886,1781046678000,-1081.71675285,0.0003321,2]
[424684887,1781046678000,-1469.78898648,0.0003321,2]
[424684885,1781046678000,-539.66110595,0.0003321,2]
[424684892,1781046678000,-1416.76004782,0.0003321,2]
[424684881,1781046678000,-768.98023,0.00027397,2]
[424684888,1781046678000,-2739.86894809,0.0003321,2]
[424684884,1781046678000,-500.0,0.00030137,3]
[424684883,1781046678000,-6102.11610734,0.000299,2]
[424684882,1781046678000,-768.9802281,0.00027397,2]
[424684880,1781046678000,-768.98023,0.00027397,2]
[424684877,1781046678000,-768.98023,0.00027397,2]
[424684870,1781046678000,-150.0,0.00027397,2]
[424684879,1781046678000,-768.98023,0.00027397,2]
[424684910,1781046679000,-1996.43768981,0.00033275,2]
[424684904,1781046679000,-1114.53985891,0.00033246,2]
[424684907,1781046679000,-1295.38202894,0.00033275,2]
[424684906,1781046679000,-1021.83,0.00033267,30]
[424684909,1781046679000,-1126.50971957,0.00033275,2]
[424684905,1781046679000,-970.53,0.00033267,30]
[424684908,1781046679000,-1299.5387332,0.00033275,2]
[424684900,1781046679000,-1678.00704075,0.00033213,2]
[424684902,1781046679000,-150.0,0.00033226,2]
[424684899,1781046679000,-1339.97244845,0.0003321,2]
[424684901,1781046679000,-1868.69013542,0.00033213,2]
[424684896,1781046679000,-3579.46521487,0.0003321,2]
[424684897,1781046679000,-1330.4629238,0.0003321,2]
[424684895,1781046679000,-1191.3017384,0.0003321,2]
[424684898,1781046679000,-3334.19952991,0.0003321,2]
[424684919,1781046679000,-437.68090141,0.00033288,30]
[424684903,1781046679000,-2324.0,0.00033235,11]
[424684911,1781046679000,-1146.42949959,0.00033275,2]
[424684917,1781046679000,-3176.0,0.00033288,30]
[424684915,1781046679000,-778.0,0.00033288,30]
[424684931,1781046679000,-63.61690932,0.00033351,30]
[424684927,1781046679000,-200.0,0.00033322,4]
[424684930,1781046679000,-665.0,0.00033351,30]
[424684929,1781046679000,-798.0,0.00033343,30]
[424684928,1781046679000,-662.0,0.00033343,30]
[424684924,1781046679000,-500.98242865,0.00033288,30]
[424684926,1781046679000,-291.81961436,0.00033288,30]
[424684925,1781046679000,-34.18038564,0.00033288,30]
[424684918,1781046679000,-698.0,0.00033288,30]
[424684922,1781046679000,-1224.559843,0.00026384,2]
[424684920,1781046679000,-151.0,0.0001245,2]
[424684921,1781046679000,-933.0,0.00024323,2]
[424684912,1781046679000,-1173.26234436,0.00033276,2]
[424684914,1781046679000,-2096.0,0.00033288,30]
[424684913,1781046679000,-562.0,0.00033288,30]
[424684916,1781046679000,-620.0,0.00033288,30]
[424684923,1781046679000,-268.33666994,0.00033288,30]
[424684932,1781046763000,615.2808,0.0003013,120]
[424684935,1781046897000,150.0,0.00030136,120]
[424684939,1781046965000,608.0,0.00030136,120]
[424684941,1781047109000,222.02,0.00028299,120]
[424684944,1781047288000,151.0,0.0003,120]
[424684945,1781047292000,151.0,0.0003,120]
[424684946,1781047293000,167.58260091,0.00030136,120]
[424684947,1781047296000,151.0,0.0003,120]
[424684948,1781047301000,151.0,0.0003,120]
[424684949,1781047304000,151.0,0.0003,120]
[424684950,1781047307000,151.0,0.0003,120]
[424684951,1781047311000,151.0,0.0003,120]
[424684952,1781047314000,151.0,0.0003,120]
[424684953,1781047318000,151.0,0.0003,120]
[424684954,1781047321000,151.0,0.0003,120]
[424684955,1781047324000,151.0,0.0003,120]
[424684956,1781047329000,151.0,0.0003,120]
[424684958,1781047331000,151.0,0.0003,120]
[424684957,1781047331000,150.0,0.0003013,120]
[424684959,1781047335000,151.0,0.0003,120]
[424684960,1781047340000,151.0,0.0003,120]
[424684961,1781047344000,151.0,0.0003,120]
[424684962,1781047347000,151.0,0.0003,120]
[424684963,1781047398000,217.524,0.0003,120]
[424684964,1781047418000,1000.0,0.00027549,120]
[424684965,1781047420000,1000.0,0.00029395,120]
[424684972,1781047698000,200.0,0.0003,120]
[424684973,1781047720000,422.38,0.00030136,120]
[424684974,1781047813000,400.0,0.0003,120]
[424684975,1781047824000,199.0,0.00030137,120]
[424684994,1781047832000,-300.0,9.899e-05,2]
[424684995,1781047832000,-150.0,9.899e-05,2]
[424684997,1781047832000,-88806.56522262,9.9e-05,2]
[424684996,1781047832000,-18973.82357738,9.9e-05,2]
[424685000,1781047832000,-11962.19445882,0.0001,2]
[424685005,1781047832000,-160.0,0.00010017,2]
[424685014,1781047832000,-1536.0,0.00010529,2]
[424685004,1781047832000,-10225.55223467,0.0001,2]
[424684992,1781047832000,-407.207213,9.624e-05,2]
[424685003,1781047832000,-308.525,0.0001,2]
[424685007,1781047832000,-263.11808268,0.000101,2]
[424684998,1781047832000,-1955.91819263,0.0001,2]
[424684993,1781047832000,-200.0,9.673e-05,2]
[424684985,1781047832000,-250.0,8.648e-05,2]
[424684989,1781047832000,-178.85038144,9.1e-05,2]
[424684991,1781047832000,-250.0,9.37e-05,2]
[424684990,1781047832000,-275.14630013,9.2e-05,2]
[424684987,1781047832000,-1604.2,8.685e-05,2]
[424684986,1781047832000,-203.28251031,8.659e-05,2]
[424684982,1781047832000,-150.0,8.262e-05,2]
[424684980,1781047832000,-150.0,8.014e-05,2]
[424684981,1781047832000,-150.0,8.138e-05,2]
[424684983,1781047832000,-257.65,8.518e-05,2]
[424684979,1781047832000,-150.0,7.774e-05,2]
[424684984,1781047832000,-250.0,8.588e-05,2]
[424685006,1781047832000,-1536.0,0.00010027,2]
[424684988,1781047832000,-183.34414701,8.688e-05,2]
[424685011,1781047832000,-1536.0,0.00010278,2]
[424684999,1781047832000,-2770.07344624,0.0001,2]
[424685013,1781047832000,-298.68,0.0001031,2]
[424685008,1781047832000,-250.0,0.00010272,2]
[424685041,1781047832000,-9999.99,0.00012087,2]
[424685042,1781047832000,-7999.35801091,0.0001209,2]
[424685038,1781047832000,-1600.0,0.00011887,2]
[424685039,1781047832000,-433.0,0.00011978,2]
[424685037,1781047832000,-168.26727956,0.00011839,2]
[424685035,1781047832000,-214.98467282,0.00011839,2]
[424685032,1781047832000,-7999.35801092,0.00011739,2]
[424685031,1781047832000,-166.66,0.00011507,2]
[424685034,1781047832000,-321.89170447,0.00011839,2]
[424685033,1781047832000,-3041.07,0.00011755,2]
[424685028,1781047832000,-284.97,0.00011325,2]
[424685030,1781047832000,-258.08549614,0.000114,2]
[424685036,1781047832000,-284.68341925,0.00011839,2]
[424685027,1781047832000,-166.66,0.00011288,2]
[424685024,1781047832000,-1000.0,0.00011145,2]
[424685025,1781047832000,-613.04,0.00011173,2]
[424685023,1781047832000,-166.66,0.00011068,2]
[424685026,1781047832000,-166.66,0.00011178,2]
[424685040,1781047832000,-150.0,0.00012061,2]
[424685015,1781047832000,-1536.0,0.00010779,2]
[424685019,1781047832000,-166.66,0.00010959,2]
[424685022,1781047832000,-1000.66,0.00011048,2]
[424685020,1781047832000,-150.0,0.00010959,2]
[424685018,1781047832000,-255.0,0.00010889,2]
[424685021,1781047832000,-1536.0,0.0001103,2]
[424685017,1781047832000,-300.0,0.00010889,2]
[424685029,1781047832000,-166.66,0.00011397,2]
[424685043,1781047833000,-1512.09686648,0.00012441,2]
[424685044,1781047833000,-407.39436554,0.00012441,2]
[424685069,1781047838000,-736.0,0.00013176,2]
[424685055,1781047838000,-6079.86677889,0.00012441,2]
[424685057,1781047838000,-215.89329178,0.00012598,2]
[424685058,1781047838000,-500.0,0.00012639,2]
[424685060,1781047838000,-500.0,0.00012639,2]
[424685056,1781047838000,-1454.41178698,0.00012598,2]
[424685061,1781047838000,-500.0,0.00012639,2]
[424685063,1781047838000,-500.0,0.00012639,2]
[424685064,1781047838000,-500.0,0.00012639,2]
[424685065,1781047838000,-7999.35801091,0.00012793,2]
[424685066,1781047838000,-1454.41178693,0.00012982,2]
[424685062,1781047838000,-500.0,0.00012639,2]
[424685070,1781047838000,-1454.41178693,0.00013365,2]
[424685059,1781047838000,-500.0,0.00012639,2]
[424685068,1781047838000,-7999.35801091,0.00013144,2]
[424685067,1781047838000,-199.5,0.00013138,2]
[424685082,1781047838000,-7999.35801091,0.00013495,2]
[424685083,1781047838000,-439.26509746,0.00013503,2]
[424685080,1781047838000,-439.26509746,0.00013488,2]
[424685077,1781047838000,-151.56478511,0.00013488,2]
[424685079,1781047838000,-150.0,0.00013488,2]
[424685081,1781047838000,-150.0,0.00013488,2]
[424685076,1781047838000,-150.0,0.00013488,2]
[424685073,1781047838000,-150.0,0.00013488,2]
[424685074,1781047838000,-150.0,0.00013488,2]
[424685075,1781047838000,-150.0,0.00013488,2]
[424685072,1781047838000,-150.0,0.00013488,2]
[424685078,1781047838000,-150.0,0.00013488,2]
[424685071,1781047838000,-1600.0,0.00013373,2]
[424685128,1781047839000,-439.26509746,0.00013578,2]
[424685152,1781047839000,-500.0,0.00013598,2]
[424685166,1781047839000,-250.0,0.00013598,2]
[424685150,1781047839000,-500.0,0.00013598,2]
[424685131,1781047839000,-500.0,0.0001359,2]
[424685145,1781047839000,-150.0,0.00013597,2]
[424685144,1781047839000,-151.0,0.00013596,2]
[424685148,1781047839000,-150.0,0.00013598,2]
[424685133,1781047839000,-150.0,0.00013593,2]
[424685155,1781047839000,-500.0,0.00013598,2]
[424685180,1781047839000,-150.0,0.00013629,2]
[424685164,1781047839000,-2000.0,0.00013598,2]
[424685161,1781047839000,-500.0,0.00013598,2]
[424685159,1781047839000,-500.0,0.00013598,2]
[424685171,1781047839000,-150.0,0.00013611,2]
[424685168,1781047839000,-439.26509746,0.00013609,2]
[424685126,1781047839000,-150.0,0.00013576,2]
[424685182,1781047839000,-150.0,0.00013634,2]
[424685178,1781047839000,-439.26509746,0.00013624,2]
[424685173,1781047839000,-150.0,0.0001362,2]
[424685175,1781047839000,-150.0,0.00013621,2]
[424685157,1781047839000,-500.0,0.00013598,2]
[424685138,1781047839000,-150.0,0.00013595,2]
[424685115,1781047839000,-439.26509746,0.00013563,2]
[424685143,1781047839000,-151.0,0.00013596,2]
[424685189,1781047839000,-150.0,0.00013645,2]
[424685093,1781047839000,-150.0,0.00013532,2]
[424685096,1781047839000,-439.26509746,0.00013533,2]
[424685098,1781047839000,-150.0,0.00013541,2]
[424685085,1781047839000,-150.0,0.0001351,2]
[424685087,1781047839000,-439.26509746,0.00013518,2]
[424685084,1781047839000,-150.0,0.00013505,2]
[424685086,1781047839000,-150.0,0.00013514,2]
[424685089,1781047839000,-150.0,0.00013523,2]
[424685091,1781047839000,-150.0,0.00013524,2]
[424685102,1781047839000,-11117.63,0.00013542,2]
[424685104,1781047839000,-439.26509746,0.00013548,2]
[424685100,1781047839000,-150.0,0.00013541,2]
[424685107,1781047839000,-150.0,0.00013554,2]
[424685113,1781047839000,-8701.0,0.00013562,2]
[424685109,1781047839000,-150.0,0.00013558,2]
[424685111,1781047839000,-150.0,0.00013561,2]
[424685118,1781047839000,-150.0,0.00013567,2]
[424685120,1781047839000,-150.0,0.00013568,2]
[424685122,1781047839000,-150.0,0.00013576,2]
[424685135,1781047839000,-439.26509746,0.00013594,2]
[424685140,1781047839000,-151.0,0.00013596,2]
[424685184,1781047839000,-439.26509746,0.00013639,2]
[424685193,1781047839000,-150.0,0.00013648,2]
[424685191,1781047839000,-150.0,0.00013646,2]
[424685244,1781047839000,-500.0,0.00013698,2]
[424685253,1781047839000,-500.0,0.00013698,2]
[424685257,1781047839000,-500.0,0.00013698,2]
[424685262,1781047839000,-500.0,0.00013698,2]
[424685264,1781047839000,-500.0,0.00013698,2]
[424685269,1781047839000,-500.0,0.00013698,2]
[424685280,1781047839000,-500.0,0.00013698,2]
[424685260,1781047839000,-500.0,0.00013698,2]
[424685274,1781047839000,-500.0,0.00013698,2]
[424685267,1781047839000,-500.0,0.00013698,2]
[424685251,1781047839000,-500.0,0.00013698,2]
[424685272,1781047839000,-500.0,0.00013698,2]
[424685290,1781047839000,-200.0,0.00013699,2]
[424685285,1781047839000,-500.0,0.00013698,2]
[424685297,1781047839000,-618.57,0.000137,2]
[424685287,1781047839000,-500.0,0.00013698,2]
[424685294,1781047839000,-439.26509746,0.000137,2]
[424685292,1781047839000,-150.0,0.00013699,2]
[424685299,1781047839000,-150.0,0.00013702,2]
[424685303,1781047839000,-150.0,0.00013708,2]
[424685301,1781047839000,-150.0,0.00013707,2]
[424685187,1781047839000,-150.0,0.00013642,2]
[424685283,1781047839000,-500.0,0.00013698,2]
[424685246,1781047839000,-500.53,0.00013698,2]
[424685277,1781047839000,-188.94,0.00013698,2]
[424685249,1781047839000,-500.0,0.00013698,2]
[424685255,1781047839000,-500.0,0.00013698,2]
[424685200,1781047839000,-150.0,0.00013664,2]
[424685198,1781047839000,-150.0,0.00013664,2]
[424685205,1781047839000,-150.0,0.0001367,2]
[424685208,1781047839000,-150.0,0.00013675,2]
[424685203,1781047839000,-439.26509746,0.00013669,2]
[424685210,1781047839000,-150.0,0.00013682,2]
[424685212,1781047839000,-439.26509746,0.00013684,2]
[424685214,1781047839000,-150.0,0.00013686,2]
[424685217,1781047839000,-500.0,0.00013698,2]
[424685219,1781047839000,-500.0,0.00013698,2]
[424685196,1781047839000,-439.26509746,0.00013654,2]
[424685221,1781047839000,-500.0,0.00013698,2]
[424685224,1781047839000,-500.0,0.00013698,2]
[424685235,1781047839000,-500.0,0.00013698,2]
[424685228,1781047839000,-500.0,0.00013698,2]
[424685226,1781047839000,-500.0,0.00013698,2]
[424685231,1781047839000,-500.0,0.00013698,2]
[424685233,1781047839000,-500.0,0.00013698,2]
[424685237,1781047839000,-500.0,0.00013698,2]
[424685240,1781047839000,-500.0,0.00013698,2]
[424685241,1781047839000,-500.0,0.00013698,2]
[424685388,1781047840000,-7999.35801091,0.00013846,2]
[424685391,1781047840000,-439.26509746,0.00013851,2]
[424685393,1781047840000,-150.0,0.00013853,2]
[424685377,1781047840000,-1500.0,0.00013827,2]
[424685386,1781047840000,-150.0,0.0001384,2]
[424685370,1781047840000,-150.0,0.00013818,2]
[424685379,1781047840000,-150.0,0.00013836,2]
[424685375,1781047840000,-150.0,0.00013823,2]
[424685384,1781047840000,-150.0,0.0001384,2]
[424685364,1781047840000,-439.26509746,0.00013806,2]
[424685382,1781047840000,-439.26509746,0.00013836,2]
[424685396,1781047840000,-150.0,0.00013858,2]
[424685412,1781047840000,-150.0,0.00013882,2]
[424685402,1781047840000,-150.0,0.00013862,2]
[424685410,1781047840000,-439.26509746,0.00013881,2]
[424685407,1781047840000,-150.0,0.00013876,2]
[424685368,1781047840000,-150.0,0.00013817,2]
[424685414,1781047840000,-150.0,0.00013884,2]
[424685424,1781047840000,-150.0,0.00013906,2]
[424685426,1781047840000,-150.0,0.00013911,2]
[424685405,1781047840000,-439.26509746,0.00013866,2]
[424685418,1781047840000,-150.0,0.0001389,2]
[424685416,1781047840000,-150.0,0.00013889,2]